Workbook

Sheet Cover
A3: Navigator
C5: =Client_Name -> SumProduct Pty Limited
C6: =Model_Name -> SP Broken Charts on Y Axis Example.xlsm
C14: Primary Developer: Liam Bastick
C16: General Cover Notes:
C17: Simple example of how to create a chart with a broken Y (vertical) axis.
C21: Any queries, please e-mail: | G21: liam.bastick@sumproduct.com
C22: Website: | G22: www.sumproduct.com

Sheet Navigator
A1: Navigator
A2: =Model_Name -> SP Broken Charts on Y Axis Example.xlsm
A3: Navigator
E4: Error Checks: | G4: =Overall_Error_Check -> 0
B7: 1 | C7: Table of Contents
F9: Cover
F10: Style Guide
F11: Model Parameters
F12: Broken Y Axis Example
F13: Error Checks

Sheet Style Guide
A1: =IF(ISERROR(RIGHT(CELL("filename",A1),LEN(CELL("filename",A1))-FIND("]",CELL("filename",A1)))), "", RIGHT(CELL("filename",A1),LEN(CELL("filename",A1))-FIND("]",CELL("filename",A1)))) -> Style Guide
A2: =Model_Name -> SP Broken Charts on Y Axis Example.xlsm
A3: Navigator
E4: Error Checks: | I4: =Overall_Error_Check -> 0
B6: =MAX($B$5:$B5)+1 -> 1 | C6: Formatting of Headers / Dividers
C8: Description | I8: Display | K8: Style Name
C10: Sheet Title | I10: =C10 -> Sheet Title | K10: Sheet Title
C11: Model Name | I11: =C11 -> Model Name | K11: Model Name
C13: Header 1 | I13: =C13 -> Header 1 | K13: Header 1
C14: Header 2 | I14: =C14 -> Header 2 | K14: Header 2
C15: Header 3 | I15: =C15 -> Header 3 | K15: Header 3
C16: Header 4 | I16: =C16 -> Header 4 | K16: Header 4
C18: Notes | I18: =C18 -> Notes | K18: Notes
C20: Table Heading | I20: =C20 -> Table Heading | K20: Table Heading
B23: =MAX($B$5:$B22)+1 -> 2 | C23: Individual Cell Styles
C25: Description | I25: Display | K25: Style Name
C27: Assumption | I27: Assumption | K27: =C27 -> Assumption
C29: Constraint | I29: =C29 -> Constraint | K29: =C29 -> Constraint
C31: Empty | K31: =C31 -> Empty
C33: Error Check | I33: 0 | K33: =C33 -> Error Check
C35: Hyperlink | I35: Hyperlink | K35: =C35 -> Hyperlink
C37: Internal Reference | I37: ='Error Checks'!E12 -> Unused | K37: =C37 -> Internal Reference
C39: Line Calculation | I39: 77 | K39: Line Calc
C41: Line Total | I41: =I39 -> 77 | K41: =C41 -> Line Total
C43: Parameter | I43: 365 | K43: =C43 -> Parameter
C45: Range Name Description | I45: Not_Named | K45: =C45 -> Range Name Description
C47: Row Reference | I47: =ROW(C47) -> 47 | K47: Row Ref
C49: Row Summary | I49: =I41 -> 77 | K49: =C49 -> Row Summary
C51: Units | I51: A$ | K51: =C51 -> Units
C53: WIP | K53: =C53 -> WIP
B56: =MAX($B$5:$B55)+1 -> 3 | C56: Numerical Styles
C58: Description | I58: Display | K58: Style Name
C60: Comma | I60: 123456.789 | K60: =C60 -> Comma
C62: Comma [0] | I62: -123456.789 | K62: Comma [0]
C64: Currency | I64: 123456.789 | K64: Currency
C66: Currency [0] | I66: 123456.789 | K66: Currency [0]
C68: Date | I68: =TODAY() -> 2022-02-08 | K68: =C68 -> Date
C70: Date Heading | I70: =TODAY() -> 2022-02-08 | K70: =C70 -> Date Heading
C72: Numbers 0 | I72: -123456.789 | K72: =C72 -> Numbers 0
C74: Percent | I74: 0.5 | K74: =C74 -> Percent

Sheet Model Parameters
A1: =IF(ISERROR(RIGHT(CELL("filename",A1),LEN(CELL("filename",A1))-FIND("]",CELL("filename",A1)))), "", RIGHT(CELL("filename",A1),LEN(CELL("filename",A1))-FIND("]",CELL("filename",A1)))) -> Model Parameters
A2: =Model_Name -> SP Broken Charts on Y Axis Example.xlsm
A3: Navigator
E4: Error Checks: | I4: =Overall_Error_Check -> 0
B6: =MAX($B$5:$B5)+1 -> 1 | C6: General
C8: Key Inputs
E10: General
E11: Model Name | G11: =IF(ISERROR(OR(FIND("[",CELL("filename",A1)),FIND("]",CELL("filename",A1)))),"",MID(CELL("filename",A1),FIND("[",CELL("filename",A1))+1,FIND("]",CELL("filename",A1))-FIND("[",CELL("filename",A1))-1)) -> SP Broken Charts on Y Axis Example.xlsm
E12: Client Name | G12: SumProduct Pty Limited
B15: =MAX($B$5:$B14)+1 -> 2 | C15: General Range Names
C17: Technical Assumptions
E19: Days in Year | G19: 365
E20: Months in Month | G20: 1
E21: Months in Quarter | G21: 3
E22: Months in Half Yr | G22: 6
E23: Months in Year | G23: 12
E24: Quarters in Year | G24: 4
E26: Rounding Accuracy | G26: 5
E28: Very Large Number | G28: 1e+99
E29: Very Small Number | G29: 1e-08
E31: Thousand | G31: 1000

Sheet Broken Y Axis Example
A1: =IF(ISERROR(RIGHT(CELL("filename",A1),LEN(CELL("filename",A1))-FIND("]",CELL("filename",A1)))), "", RIGHT(CELL("filename",A1),LEN(CELL("filename",A1))-FIND("]",CELL("filename",A1)))) -> Broken Y Axis Example
A2: =Model_Name -> SP Broken Charts on Y Axis Example.xlsm
A3: Navigator
E4: Error Checks: | I4: =Overall_Error_Check -> 0
B6: =MAX($B$5:$B5)+1 -> 1 | C6: Assumptions
C8: Revenue
D10: =A1 -> Broken Y Axis Example
F12: Month | G12: Meat | H12: Toilet Rolls | I12: Pasta
F13: Jan | G13: 64188 | H13: 37493 | I13: 31290
F14: Feb | G14: 67592 | H14: 41222 | I14: 47848
F15: Mar | G15: 62166 | H15: 38299 | I15: 52661
F16: Apr | G16: 449544 | H16: 507155 | I16: 474868
F17: May | G17: 451428 | H17: 496544 | I17: 470100
F18: Jun | G18: 12052 | H18: 6138 | I18: 12922
F19: Jul | G19: 4646 | H19: 4294 | I19: 9088
F20: Aug | G20: 27395 | H20: 5166 | I20: 15166
F21: Sep | G21: 52166 | H21: 12938 | I21: 24377
F22: Oct | G22: 55177 | H22: 25222 | I22: 39825
F23: Nov | G23: 58936 | H23: 27144 | I23: 39044
F24: Dec | G24: 50012 | H24: 29387 | I24: 56193
B27: =MAX($B$5:$B26)+1 -> 2 | C27: Finding Largest Gap
C29: Gap
D31: Calculation
H33: Max Gap | I33: Lower Val | J33: Upper Val
E34: Largest Gap | G34: =MATCH(H34,IFERROR(LARGE(G13:I24,_xlfn.SEQUENCE(COUNT(G13:I24))-1)-LARGE(G13:I24,_xlfn.SEQUENCE(COUNT(G13:I24))),),0) -> 7 | H34: =MAX(IFERROR(LARGE(G13:I24,_xlfn.SEQUENCE(COUNT(G13:I24))-1)-LARGE(G13:I24,_xlfn.SEQUENCE(COUNT(G13:I24))),)) -> 381952 | I34: =LARGE($G$13:$I$24,$G$34) -> 67592 | J34: =LARGE($G$13:$I$24,$G$34-1) -> 449544
E36: Multiple | G36: 40000
H38: Rev Gap | I38: Rev Lower | J38: Rev Upper
E39: Revisions | H39: =J39-I39 -> 320000 | I39: =ROUNDUP(I34/G36,0)*G36 -> 80000 | J39: =ROUNDDOWN((J34/G36)-1,0)*G36 -> 400000
B42: =MAX($B$5:$B41)+1 -> 3 | C42: Revised Input Data
C44: =C8 -> Revenue
D46: =D10 -> Broken Y Axis Example
F48: =F12 -> Month | G48: =G12 -> Meat | H48: Toilet Rolls | I48: Pasta
F49: =F13 -> Jan | G49: =IF(G13<$I$39,G13,G13-$H$39) -> 64188 | H49: =IF(H13<$I$39,H13,H13-$H$39) -> 37493 | I49: 31290
F50: Feb | G50: =IF(G14<$I$39,G14,G14-$H$39) -> 67592 | H50: 41222 | I50: 47848
F51: Mar | G51: 62166 | H51: 38299 | I51: 52661
F52: Apr | G52: 129544 | H52: 187155 | I52: 154868
F53: May | G53: 131428 | H53: 176544 | I53: 150100
F54: Jun | G54: 12052 | H54: 6138 | I54: 12922
F55: Jul | G55: 4646 | H55: 4294 | I55: 9088
F56: Aug | G56: 27395 | H56: 5166 | I56: 15166
F57: Sep | G57: 52166 | H57: 12938 | I57: 24377
F58: Oct | G58: 55177 | H58: 25222 | I58: 39825
F59: Nov | G59: 58936 | H59: 27144 | I59: 39044
F60: Dec | G60: 50012 | H60: 29387 | I60: 56193
B63: =MAX($B$5:$B62)+1 -> 4 | C63: Initial Chart
C65: Plotting the Revised Data
D67: Work in Progress
B92: =MAX($B$5:$B91)+1 -> 5 | C92: Helper Calculations
C94: Assistance with Chart Cheating
D96: Calculations
F98: Dummy | G98: Rev Val | H98: Chart Lbl
F99: 0 | G99: =IFERROR(G98+($G$36/2),)+($G$36/2)*(N(G98)=$I$39) -> 0 | H99: =IF($G99<=$I$39,$G99,$G99+$H$39) -> 0
F100: 0 | G100: =IFERROR(G99+($G$36/2),)+($G$36/2)*(N(G99)=$I$39) -> 20000 | H100: =IF($G100<=$I$39,$G100,$G100+$H$39) -> 20000
F101: 0 | G101: 40000 | H101: 40000
F102: 0 | G102: 60000 | H102: 60000
F103: 0 | G103: 80000 | H103: 80000
F104: 0 | G104: 120000 | H104: 440000
F105: 0 | G105: 140000 | H105: 460000
F106: 0 | G106: 160000 | H106: 480000
F107: 0 | G107: 180000 | H107: 500000
F108: 0 | G108: =IFERROR(G107+($G$36/2),)+($G$36/2)*(N(G107)=$I$39) -> 200000 | H108: 520000
B111: =MAX($B$5:$B110)+1 -> 6 | C111: Interim Chart #1
C113: Revising the Chart
D115: Work in Progress
B140: =MAX($B$5:$B139)+1 -> 7 | C140: Interim Chart #2
C142: Revising the Chart #2
D144: Changing New Series to a Scatter Chart
B169: =MAX($B$5:$B168)+1 -> 8 | C169: Interim Chart #3
C171: Revising the Chart #3
D173: Deleting Secondary Y Axis and "Freezing" Secondary Axis
B198: =MAX($B$5:$B197)+1 -> 9 | C198: Interim Chart #4
C200: Revising the Chart #4
D202: No Tick Marks or Labels for Axes
B227: =MAX($B$5:$B226)+1 -> 10 | C227: Interim Chart #5
C229: Revising the Chart #5
D231: Added Labels to Secondary Markers on Y Axis, Adjust the Legend
B256: =MAX($B$5:$B255)+1 -> 11 | C256: Helper Calculations #2
C258: =C94 -> Assistance with Chart Cheating
D260: =D96 -> Calculations | K260: Secret Rectangle
F262: =F48 -> Month | G262: Data 1 | H262: Data 2 | I262: Data 3
F263: 0 | G263: =$I$39+$G$36/4 -> 90000 | H263: =G263+$G$36/2 -> 110000 | I263: =AVERAGE(G263:H263) -> 100000
F264: =F263+1/11 -> 0.09090909091 | G264: =$I$39+$G$36/4 -> 90000 | H264: =G264+$G$36/2 -> 110000 | I264: =AVERAGE(G264:H264) -> 100000
F265: =F264+1/11 -> 0.1818181818 | G265: 90000 | H265: 110000 | I265: 100000
F266: 0.2727272727 | G266: 90000 | H266: 110000 | I266: 100000
F267: 0.3636363636 | G267: 90000 | H267: 110000 | I267: 100000
F268: 0.4545454545 | G268: 90000 | H268: 110000 | I268: 100000
F269: 0.5454545455 | G269: 90000 | H269: 110000 | I269: 100000
F270: 0.6363636364 | G270: 90000 | H270: 110000 | I270: 100000
F271: 0.7272727273 | G271: 90000 | H271: 110000 | I271: 100000
F272: 0.8181818182 | G272: 90000 | H272: 110000 | I272: 100000
F273: 0.9090909091 | G273: 90000 | H273: 110000 | I273: 100000
F274: 1 | G274: 90000 | H274: 110000 | I274: 100000
B277: =MAX($B$5:$B276)+1 -> 12 | C277: Final Chart
C279: Completed Chart
D281: With Additional Help…

Sheet Error Checks
A1: =IF(ISERROR(RIGHT(CELL("filename",A1),LEN(CELL("filename",A1))-FIND("]",CELL("filename",A1)))), "", RIGHT(CELL("filename",A1),LEN(CELL("filename",A1))-FIND("]",CELL("filename",A1)))) -> Error Checks
A2: =Model_Name -> SP Broken Charts on Y Axis Example.xlsm
A3: Navigator
B4: Error Checks: | F4: =Overall_Error_Check -> 0
B6: =MAX($B$5:$B5)+1 -> 1 | C6: Error Checks
C8: Summary of Errors
D10: Assumptions
E12: Unused
E17: =C8 -> Summary of Errors | I17: =MIN(1,SUM(I11:I15)) -> 0
